Cogmind - Beta 15 --- EXPLORER MODE // 2025.07.24 @ 21:10:44 // Winter2019/RPGLIKE Player: User15V Result: Self-destructed Performance ------------- Evolutions (7) 3500 Regions Visited (7) 1400 Robots Destroyed (111) 555 Value Destroyed (5065) 5065 Prototype IDs (63) 1260 Alien Tech Used (0) 0 Bonus (1205) 1205 TOTAL SCORE: 12985 Bonus ------- High Alert Combat Kills 405 Registered with UFD 300 Met Optimus in HQ 500 Cogmind --------- Core Integrity 662/1300 Matter 300/300 Energy 614/640 System Corruption 3% Temperature Cool (6) Movement Hovering (45) Location -3/Testing Parts ------- > --- POWER (2) -------- Light Fission Core Cooled Antimatter Reactor > --- PROPULSION (4) --- Cooled Aerolev Unit Improved Antigrav System Experimental Gyrokinetic Inverter Experimental Gyrokinetic Inverter > --- UTILITY (12) ----- Advanced Cooling System (fused) Long-range Terrain Scanner Advanced Target Analyzer Improved Particle Charger Advanced Weapon Cycler Advanced Transmission Jammer Graphene Brace Experimental Focal Shield Improved Thermal Shield Experimental Shield Generator Experimental Hacking Suite A0-MCA's Component Scanner > --- WEAPON (5) ------- Plasma Rifle Plasma Rifle Dispersion Rifle Heavy Dispersion Rifle Molecular Scythe > --- INVENTORY (5) ---- Linear Gravjet Improved Antigrav System Advanced Heat Sink Improved Reaction Control System Peak State ------------ > --- POWER ------------ Light Fission Core Cooled Antimatter Reactor > --- PROPULSION ------- Cooled Aerolev Unit Improved Antigrav System Experimental Gyrokinetic Inverter Experimental Gyrokinetic Inverter > --- UTILITY ---------- Advanced Cooling System Long-range Terrain Scanner Advanced Target Analyzer Advanced Weapon Cycler Advanced Transmission Jammer Graphene Brace Experimental Focal Shield Improved Thermal Shield Experimental Shield Generator Experimental Hacking Suite Experimental System Shield A0-MCA's Component Scanner > --- WEAPON ----------- Plasma Rifle Plasma Rifle Dispersion Rifle Heavy Dispersion Rifle Molecular Scythe > --- INVENTORY -------- Linear Gravjet Improved Antigrav System Advanced Heat Sink Improved Particle Charger Improved Reaction Control System [Rating: 174] Favorites ----------- Power Light Fission Core Engine Light Ion Engine Power Core Light Fission Core Reactor Particle Reactor Propulsion Improved Antigrav System Leg Aluminum Leg Wheel Wheel Hover Unit Improved Antigrav System Utility Improved Terrain Scanner Device Improved Terrain Scanner Processor A0-MCA's Component Scanner Hackware System Shield Protection Insulated Plating Weapon Plasma Rifle Energy Gun Plasma Rifle Ballistic Gun Assault Rifle Ballistic Cannon Light Cannon Special Weapon Mining Laser Slashing Weapon Chainsword Build | -11 -10 -10 -7 -5 -4 -3 -3 ------- Run | Yrd Mat Sub Scr Fac Fac Res Tes Slots Evolved 19 | 4 . . 4 10 . 1 . Power 1 | . . . . 1 . . . Propulsion 3 | 1 . . 2 . . . . Utility 11 | 2 . . 1 8 . . . Weapon 4 | 1 . . 1 1 . 1 . Parts Attached 65 | 4 6 1 9 24 1 14 6 Power 7 | . 1 . 1 3 . 2 . Engine 3 | . 1 . 1 1 . . . Core 2 | . . . . 2 . . . Reactor 2 | . . . . . . 2 . Propulsion 15 | 2 . . 4 7 . 2 . Treads . | . . . . . . . . Leg . | . . . . . . . . Wheel 2 | 2 . . . . . . . Hover 13 | . . . 4 7 . 2 . Flight . | . . . . . . . . Utility 27 | 1 1 1 3 9 1 6 5 Device 16 | 1 . . 1 7 . 5 2 Storage . | . . . . . . . . Processor 4 | . 1 . 1 . . 1 1 Hackware 5 | . . . 1 1 1 . 2 Protection 2 | . . 1 . 1 . . . Artifact . | . . . . . . . . Weapon 16 | 1 4 . 1 5 . 4 1 Energy Gun 8 | . . . . 5 . 2 1 Energy Cannon . | . . . . . . . . Ballistic Gun 2 | 1 1 . . . . . . Ballistic Cannon 2 | . 2 . . . . . . Launcher . | . . . . . . . . Special Weapon 1 | . 1 . . . . . . Impact Weapon . | . . . . . . . . Slashing Weapon 3 | . . . 1 . . 2 . Piercing Weapon . | . . . . . . . . Special Melee Weapon . | . . . . . . . . Unidentified Prototypes . | . . . . . . . . Parts Lost 3 | . . . . . . 2 1 Power . | . . . . . . . . Propulsion . | . . . . . . . . Utility 2 | . . . . . . 1 1 Weapon 1 | . . . . . . 1 . Highest Loss Streak 1 | . . . . . . 1 1 To Critical Strikes . | . . . . . . . . Average Backups 3 | 1 2 4 4 3 5 4 4 Power . | . . . . . . . . Propulsion 1 | . 1 3 . . 1 1 2 Utility . | . . . 1 1 1 . 2 Weapon 1 | . 1 1 1 1 3 1 . Tool/Special . | . . . . . . . . Unused Backups 11 | 4 2 . . . . 5 . Power 1 | 1 . . . . . . . Propulsion 2 | 1 . . . . . 1 . Utility 3 | 1 . . . . . 2 . Weapon 5 | 1 2 . . . . 2 . Tool/Special . | . . . . . . . . Average Slot Usage (%) 93 | . 96 87 90 89 91 96 95 Engine 5 | . 12 12 8 6 . . . Core 2 | . . . . 2 9 4 4 Reactor 1 | . . . . . . 3 4 Wheel 6 | . 25 25 1 . . . . Hover 14 | . . . 25 20 18 17 17 Device 24 | . 12 12 16 26 31 34 36 Processor 5 | . 8 . 2 5 4 5 9 Hackware 4 | . . . 7 5 5 6 4 Protection 4 | . 12 12 . 1 4 4 . Energy Gun 7 | . . . . 12 13 13 13 Ballistic Gun 2 | . 17 . . . . . . Ballistic Cannon 6 | . 7 25 18 1 . . . Slashing Weapon 3 | . . . 8 5 4 4 4 Peak Build Rating 174 | 9 11 12 37 107 112 154 174 Average Rating 77 | 5 10 11 27 85 108 128 163 On Entrance 55 | 4 9 11 12 37 107 112 151 Naked Turns . | . . . . . . . . Heaviest Build 69 | 9 11 28 28 48 45 63 69 Greatest Support 69 | 20 20 20 26 64 62 69 69 Greatest Overweight (x) 2 | 2 . 1 1 1 . 1 . Average Overweight (x) . | . . 1 . . . . . Largest Inventory Capacity 5 | 4 4 4 5 5 5 5 5 Average Capacity 4 | 4 4 4 4 5 5 5 5 Most Carried 5 | 4 4 4 5 5 5 5 5 Average Carried 3 | 1 2 4 4 3 5 4 4 Final Capacity 5 | 4 4 4 5 5 5 5 5 Final Carried 5 | 1 4 4 4 5 5 5 4 Class Distribution -------------------- 34% | Hacker-Ninja 30% | Hacker-Mutant 23% | Wizard-Ninja 10% | Hacker-Skirmisher Dominant Class ---------------- Hacker-Skirmisher | -10/Materials Hacker-Mutant | -10/Subcaves Hacker-Mutant | -7/Scraptown Hacker-Ninja | -5/Factory Hacker-Ninja | -4/Factory Wizard-Ninja | -3/Research Hacker-Ninja | -3/Testing Resources | -11 -10 -10 -7 -5 -4 -3 -3 ----------- Run | Yrd Mat Sub Scr Fac Fac Res Tes Matter Collected 1367 | 318 119 248 57 356 32 99 138 Remotely . | . . . . . . . . Salvage Created 5884 | 172 230 72 . 768 100 3677 865 Parts 181 | 16 19 4 . 25 6 87 24 Haulers Intercepted 6 | . . . . . . 6 . Recyclers Shooed 3 | . 1 . . . . 2 . Parts Field Recycled . | . . . . . . . . Retrieved Matter . | . . . . . . . . Parts Self-Destructed . | . . . . . . . . Prevented . | . . . . . . . . Kills | -11 -10 -10 -7 -5 -4 -3 -3 ------- Run | Yrd Mat Sub Scr Fac Fac Res Tes Combat Hostiles Destroyed 72 | . 6 2 . 11 3 43 7 Melee 2 | . . . . 2 . . . Guns 56 | . 6 . . 9 3 33 5 Cannons 2 | . . 2 . . . . . Classes Destroyed 17 | 3 3 1 . 2 1 5 2 Worker 10 | 1 1 . . 1 . 7 . Builder 2 | . . . . . . 1 1 Tunneler 4 | 4 . . . . . . . Hauler 6 | . . . . . . 6 . Recycler 6 | 1 1 . . 1 . 2 1 Operator 1 | . . . . . 1 . . Watcher 9 | . 3 . . 4 . 2 . Swarmer 11 | . 2 . . 1 3 5 . Grunt 25 | . 4 . . 7 . 11 3 Brawler 2 | . . . . . . 2 . Duelist 1 | . . . . 1 . . . Researcher 1 | . . . . . . . 1 Sentry 3 | . . . . . . 3 . Specialist 2 | . . . . . . . 2 Hunter 8 | . . . . . . 8 . Programmer 18 | . . . . 2 . 14 2 Subdweller 2 | . . 2 . . . . . Best Kill Streak 16 | 2 4 2 . 6 4 16 4 Combat Bots Only 8 | . 2 2 . 4 3 8 4 Max Kills in Single Turn 2 | 1 1 1 . 1 2 2 1 Gunslinging 1 | . . . . . 1 1 . Exploded . | . . . . . . . . Melee 1 | . . . . 1 . . . Uniques/NPCs Destroyed . | . . . . . . . . Combat | -11 -10 -10 -7 -5 -4 -3 -3 -------- Run | Yrd Mat Sub Scr Fac Fac Res Tes Hostile Shots Fired 638 | . 25 20 . 71 9 422 91 Missed 299 | . 6 3 . 41 6 208 35 Hits 339 | . 19 17 . 30 3 214 56 Melee 1 | . . . . 1 . . . Projectile 338 | . 19 17 . 29 3 214 56 AOE 2 | . . 2 . . . . . Critical Strikes 17 | . . . . 1 . 14 2 Actively Blocked 16 | . . . . . . 14 2 Part Disruptions 1 | . . . . . . 1 . Damage Taken 3181 | . 117 259 . 445 23 2094 243 Core 2325 | . 85 154 . 349 19 1532 186 Absorbed by Shields 111 | . . . . . . . 111 Redirected to Core 1972 | . 73 82 . 289 12 1378 138 Redirected to Shielding 2 | . 2 . . . . . . Ignored by Resistances 3470 | . 79 155 . 359 15 2278 584 Core Remaining (%) 87 | 100 . . 78 84 88 . . Volleys Fired 251 | 14 35 13 . 40 7 127 15 Largest 4 | 2 2 2 . 3 3 4 4 Hottest 332 | 40 100 60 . 219 219 313 332 Shots Fired 692 | 28 69 26 . 114 21 383 51 Gun 653 | 28 68 . . 102 21 383 51 Cannon 38 | . . 26 . 12 . . . Launcher . | . . . . . . . . Special 1 | . 1 . . . . . . Kinetic 134 | 28 68 26 . 12 . . . Thermal 558 | . 1 . . 102 21 383 51 Explosive . | . . . . . . . . Electromagnetic . | . . . . . . . . Robot Hit Streak 77 | 10 17 29 . 36 8 77 33 Robot Miss Streak 4 | 1 2 . . 2 4 3 1 Penetration Max . | . . . . . . . . Secondary Targets 16 | . . . . 4 2 10 . Max Gunslinging Chain 1 | . . . . 1 1 1 . Shots Hit Robots 591 | 20 54 26 . 98 15 334 44 Core Hits 213 | 7 20 4 . 39 6 121 16 Critical Kills 6 | . 1 . . . . 5 . Critical Parts Destroyed 15 | . 1 . . . . 11 3 Critical Strikes 58 | . 2 . . 2 1 48 5 Burn 36 | . . . . 2 1 31 2 Destroy 22 | . 2 . . . . 17 3 Melee Attacks 33 | . . . . 9 . 9 15 Impact . | . . . . . . . . Slashing 33 | . . . . 9 . 9 15 Piercing . | . . . . . . . . Sneak Attacks 6 | . . . . 1 . 2 3 Combat Hostiles . | . . . . . . . . Follow-up Attacks . | . . . . . . . . Damage Inflicted 15378 | 214 658 424 . 2122 366 10098 1496 Guns 13973 | 214 658 . . 1703 366 9882 1150 Cannons 612 | . . 424 . 188 . . . Explosions . | . . . . . . . . Melee 793 | . . . . 231 . 216 346 Ramming . | . . . . . . . . Kinetic 1484 | 214 658 424 . 188 . . . Thermal 13101 | . . . . 1703 366 9882 1150 Explosive . | . . . . . . . . Electromagnetic . | . . . . . . . . Impact . | . . . . . . . . Slashing 793 | . . . . 231 . 216 346 Piercing . | . . . . . . . . Highest Corruption 3 | . . . . . . 2 3 Average Corruption 2 | . . . . . . 1 2 Corruption Purged . | . . . . . . . . Corruption Blocked . | . . . . . . . . Effects 13 | . . . . . . 6 7 Message Errors 2 | . . . . . . . 2 Matter Fused 4 | . . . . . . 1 3 Heat Flow Errors 1 | . . . . . . 1 . Energy Discharges 2 | . . . . . . 1 1 Parts Fused 1 | . . . . . . 1 . Data Loss (minor) 2 | . . . . . . 1 1 Data Loss (major) 1 | . . . . . . 1 . Overload Shots . | . . . . . . . . Overflow Damage 37 | . . . . 37 . . . Projectiles . | . . . . . . . . Explosions . | . . . . . . . . Melee 37 | . . . . 37 . . . Knockbacks 12 | . . 9 . 3 . . . Impact . | . . . . . . . . Kinetic 12 | . . 9 . 3 . . . Secondary . | . . . . . . . . Self-Inflicted Damage . | . . . . . . . . Shots . | . . . . . . . . Rammed . | . . . . . . . . Targets Rammed . | . . . . . . . . Kicked . | . . . . . . . . Crushed . | . . . . . . . . Highest Temperature 347 | . . . . 192 . 108 347 Average Temperature 59 | . . . . 65 . 15 120 Received Heat Transfer 814 | . 78 6 . 153 . 390 187 Siege Activations . | . . . . . . . . Martial Activations . | . . . . . . . . Shielding Activations . | . . . . . . . . Robots Disrupted . | . . . . . . . . Combat Hostiles . | . . . . . . . . Robots Corrupted . | . . . . . . . . Combat Hostiles . | . . . . . . . . Parts Fried . | . . . . . . . . Impact Corruptions . | . . . . . . . . Robots Melted 13 | . . . . . . 11 2 Combat Hostiles 12 | . . . . . . 10 2 Parts Melted 116 | . . . . 13 1 88 14 Heat Transferred 24833 | . . . . 3442 772 18590 2029 Parts Sabotaged . | . . . . . . . . Parts Stolen . | . . . . . . . . Parts Stripped . | . . . . . . . . Power Chain Reactions . | . . . . . . . . Alert | -11 -10 -10 -7 -5 -4 -3 -3 ------- Run | Yrd Mat Sub Scr Fac Fac Res Tes Maximum Alert Level 3 | . . . . . . 3 1 Low Security (%) 73 | 100 100 . . 100 100 35 67 Level 1 9 | . . . . . . 12 32 Level 2 14 | . . . . . . 44 . Level 3 2 | . . . . . . 6 . Level 4 . | . . . . . . . . Level 5 . | . . . . . . . . High Security . | . . . . . . . . Max Security . | . . . . . . . . Peak Influence 721 | 10 62 . . 66 66 721 279 Initial 279 | . 2 . . . 3 19 279 Average 141 | 2 10 . . 19 13 350 122 Influence Increases 2295 | 30 182 . . 370 81 1366 266 Destroy 0b10 Robot/C 1420 | . 120 . . 220 60 860 160 Destroy 0b10 Robot/NC 190 | 30 25 . . 30 5 90 10 Destroy Leader 300 | . 36 . . 48 10 196 10 Successful Hack 102 | . . . . 60 . 35 7 Disable Machine 16 | . . . . . 4 . 12 Destroy Structure 87 | . 1 . . 12 2 50 22 Partial Spotted 120 | . . . . . . 120 . Lose Combat Pursuer 60 | . . . . . . 15 45 Influence Decreases 2240 | 25 187 . . 360 40 755 873 Entered New Map 425 | . 3 . . . 7 32 383 Time Decay 1589 | 25 184 . . 360 33 703 284 Lost Part 30 | . . . . . . 20 10 Purge Threat 196 | . . . . . . . 196 Squads Dispatched 14 | . . . . 3 . 8 3 Investigation 5 | . . . . 2 . 1 2 Extermination 5 | . . . . 1 . 3 1 Reinforcement 3 | . . . . . . 3 . Assault 1 | . . . . . . 1 . Garrison . | . . . . . . . . Intercept . | . . . . . . . . Searches Triggered . | . . . . . . . . Construction Impeded . | . . . . . . . . Haulers Reinforced 3 | . . . . . . 3 . Active Scanning Responses . | . . . . . . . . Cargo Convoy Interrupts 1 | . . . . . . 1 . Stealth | -11 -10 -10 -7 -5 -4 -3 -3 --------- Run | Yrd Mat Sub Scr Fac Fac Res Tes Distress Signals 5 | . 1 . . 1 1 2 . Communications Jammed 120 | . . . . 10 . 92 18 Distress Signals 120 | . . . . 10 . 92 18 Times Spotted 134 | . 11 5 . 26 6 70 16 Peak Tracking Total 15 | . 3 3 . 6 6 15 7 Tactical Retreats 3 | . . . . . . 1 2 Traps | -11 -10 -10 -7 -5 -4 -3 -3 ------- Run | Yrd Mat Sub Scr Fac Fac Res Tes Traps Triggered 4 | . 1 . . . . 1 2 Indirectly . | . . . . . . . . Trap Hack Attempts . | . . . . . . . . Triggered . | . . . . . . . . Disarmed . | . . . . . . . . Reprogrammed . | . . . . . . . . Reused . | . . . . . . . . Traps Extracted . | . . . . . . . . Installed . | . . . . . . . . Triggered . | . . . . . . . . Machines | -11 -10 -10 -7 -5 -4 -3 -3 ---------- Run | Yrd Mat Sub Scr Fac Fac Res Tes Machines Disabled 4 | . . . . . 1 . 3 Max in Single Turn 1 | . . . . . 1 . 1 Garrison Access 1 | . . . . . . . 1 Machines Repaired . | . . . . . . . . Machines Dismantled . | . . . . . . . . Machines Sabotaged . | . . . . . . . . Overloaded Fab Kills . | . . . . . . . . Hacking | -11 -10 -10 -7 -5 -4 -3 -3 --------- Run | Yrd Mat Sub Scr Fac Fac Res Tes Machines Accessed 19 | . . . . 6 1 6 6 Terminals 13 | . . . . 3 1 5 4 Fabricators 3 | . . . . 1 . 1 1 Repair Stations . | . . . . . . . . Recycling Units . | . . . . . . . . Scanalyzers 2 | . . . . 2 . . . Garrison Access 1 | . . . . . . . 1 Total Hacks 80 | . . . . 27 4 22 27 Successful 41 | . . . . 16 1 9 15 Failed 39 | . . . . 11 3 13 12 Catastrophic 5 | . . . . 2 . 3 . Database Lockouts . | . . . . . . . . Manual 22 | . . . . 5 . 10 7 Terminals 53 | . . . . 12 4 17 20 Fabricators 12 | . . . . 3 . 5 4 Repair Stations . | . . . . . . . . Recycling Units . | . . . . . . . . Scanalyzers 12 | . . . . 12 . . . Garrison Access 3 | . . . . . . . 3 Terminal Hacks 25 | . . . . 3 1 7 14 Record 1 | . . . . . . 1 . Part Schematic 7 | . . . . 2 . 1 4 Prototype ID Bank 2 | . . . . . . . 2 Level Access Points 3 | . . . . 1 1 . 1 Branch Access Points 1 | . . . . . . 1 . Machine Index 1 | . . . . . . 1 . Scanalyzer Index 1 | . . . . . . 1 . Unreport Threat 4 | . . . . . . . 4 Locate Traps 1 | . . . . . . 1 . Registered Components 2 | . . . . . . 1 1 Protovariant Controls 2 | . . . . . . . 2 Fabricator Hacks 5 | . . . . 3 . 2 . Network Status 1 | . . . . 1 . . . Load Schematic 2 | . . . . 1 . 1 . Build 2 | . . . . 1 . 1 . Repair Station Hacks . | . . . . . . . . Recycling Unit Hacks . | . . . . . . . . Scanalyzer 10 | . . . . 10 . . . Insert Component 5 | . . . . 5 . . . Analyze 5 | . . . . 5 . . . Garrison Access Hacks 1 | . . . . . . . 1 Seal Access 1 | . . . . . . . 1 Unauthorized Hacks . | . . . . . . . . Terminals . | . . . . . . . . Fabricators . | . . . . . . . . Repair Stations . | . . . . . . . . Recycling Units . | . . . . . . . . Scanalyzers . | . . . . . . . . Garrison Access . | . . . . . . . . Data Cores Recovered 1 | . . . . . 1 . . Used 1 | . . . . . 1 . . Hacking Detections 18 | . . . . 6 1 5 6 Full Trace Events 5 | . . . . 2 . 1 2 Feedback Events . | . . . . . . . . Feedback Blocked . | . . . . . . . . Robot Schematics Acquired . | . . . . . . . . Robots Built . | . . . . . . . . Authchips . | . . . . . . . . Time . | . . . . . . . . Total Robot Build Rating . | . . . . . . . . Part Schematics Acquired 16 | . . . . 7 . 1 8 Parts Built 4 | . . . . 2 . 2 . Authchips . | . . . . . . . . Time 97 | . . . . 58 . 39 . Total Part Build Rating 28 | . . . . 14 . 14 . Parts Repaired . | . . . . . . . . Time . | . . . . . . . . Parts Recycled . | . . . . . . . . Recycled Matter . | . . . . . . . . Retrieved Matter . | . . . . . . . . Retrieved Components . | . . . . . . . . Parts Scanalyzed 5 | . . . . 5 . . . Part Schematics Acquired 5 | . . . . 5 . . . Parts Damaged 1 | . . . . 1 . . . Bothacking | -11 -10 -10 -7 -5 -4 -3 -3 ------------ Run | Yrd Mat Sub Scr Fac Fac Res Tes Used RIF Installer . | . . . . . . . . Robots Hacked . | . . . . . . . . Non-combat . | . . . . . . . . Combat . | . . . . . . . . Robot Hacks Applied . | . . . . . . . . Relay Couplers Released 1 | . . . . . . 1 . Programmers 1 | . . . . . . 1 . Fabnet Peak Effective % . | . . . . . . . . Robots Rewired . | . . . . . . . . Allies Hacked . | . . . . . . . . Hacks Repelled . | . . . . . . . . Allies | -11 -10 -10 -7 -5 -4 -3 -3 -------- Run | Yrd Mat Sub Scr Fac Fac Res Tes Total Allies . | . . . . . . . . Largest Group . | . . . . . . . . Highest-Rated Group . | . . . . . . . . Highest-Rated Ally . | . . . . . . . . Total Orders . | . . . . . . . . Ally Attacks . | . . . . . . . . Total Damage . | . . . . . . . . Kills . | . . . . . . . . Allies Corrupted . | . . . . . . . . Allies Melted . | . . . . . . . . Intel | -11 -10 -10 -7 -5 -4 -3 -3 ------- Run | Yrd Mat Sub Scr Fac Fac Res Tes Active Infowar (turns) 3986 | 18 609 383 585 739 145 1029 478 Optics 454 | . 450 4 . . . . . Terrain 3986 | 18 609 383 585 739 145 1029 478 Jamming 2137 | . . . 2 580 48 1029 478 Robot Analysis Total . | . . . . . . . . Derelict Logs Recovered . | . . . . . . . . Drone Launches . | . . . . . . . . Drone Recoveries . | . . . . . . . . Exploration | -11 -10 -10 -7 -5 -4 -3 -3 ------------- Run | Yrd Mat Sub Scr Fac Fac Res Tes Turns Passed 4085 | 117 609 383 585 739 145 1029 478 Spaces Moved 3131 | 60 300 162 514 755 59 760 521 Core 1 | 1 . . . . . . . Treads . | . . . . . . . . Legs 43 | 43 . . . . . . . Wheels 496 | 16 300 162 18 . . . . Hover 2591 | . . . 496 755 59 760 521 Flight . | . . . . . . . . Fastest Speed 40 | 80 80 95 48 40 40 40 45 Average Speed 60 | 109 80 95 98 46 40 41 45 Slowest Speed 150 | 150 80 95 112 105 40 102 45 Overloaded Moves . | . . . . . . . . Propulsion Burnouts . | . . . . . . . . Robots Hopped . | . . . . . . . . Potential Cave-ins . | . . . . . . . . Cave-ins Triggered . | . . . . . . . . Exploration Rate (%) 33 | 4 66 17 51 26 3 29 75 Regions Visited 7 Branch Regions 3 Pre-discovered Areas 1 | . . . 1 . . . . Known Exits Taken 6 | 1 1 . 1 1 1 1 . Unknown Exits Taken 1 | . . 1 . . . . . Scrap Searched 3 | . . . 3 . . . . Spaces Dug 23 | . 1 . . 4 . 7 11 Terrain Destroyed 39 | . 1 . . 4 . 22 12 Melee 21 | . . . . 4 . 7 10 Projectile 18 | . 1 . . . . 15 2 AOE . | . . . . . . . . Terrain Rammed . | . . . . . . . . Walls Destroyed . | . . . . . . . . Machines Disabled . | . . . . . . . . Actions | -11 -10 -10 -7 -5 -4 -3 -3 --------- Run | Yrd Mat Sub Scr Fac Fac Res Tes Total 4744 | 83 599 365 595 1042 163 1179 718 Wait 1071 | . 238 185 58 161 94 179 156 Move 3124 | 59 299 161 513 754 58 759 521 Hop . | . . . . . . . . Pick Up 52 | 5 8 . 9 14 . 14 2 Fast Attach 17 | . 3 1 1 5 1 4 2 Attach 29 | 4 1 . 8 8 . 5 3 Detach 1 | . . . . 1 . . . Swap 26 | . 2 . 1 14 . 7 2 Drop 49 | 1 6 2 5 15 . 18 2 Fire 251 | 14 35 13 . 40 7 127 15 Melee 33 | . . . . 9 . 9 15 Ram . | . . . . . . . . Kick . | . . . . . . . . Crush . | . . . . . . . . Escape Stasis . | . . . . . . . . Rewire . | . . . . . . . . Trap . | . . . . . . . . Miscellaneous 91 | . 7 3 . 21 3 57 . Route ------- -11/Scrapyard -10/Materials (discovered 5 exits: *Mat x3 / *Min / *Sub) -10/Subcaves -7/Scraptown -5/Factory (discovered 4 exits: *Fac x4) -4/Factory (discovered 4 exits: *Res x4) -3/Research (discovered 5 exits: *Res x2 / Arm / *Tes x2) -3/Testing (discovered 1 exit: *Res) History --------- Turn | Location | Event 1 | -11/Scrapyard | Upgraded with Propulsion slot (x1) 1 | -11/Scrapyard | Upgraded with Utility slot (x2) 1 | -11/Scrapyard | Upgraded with Weapon slot (x1) 1 | -11/Scrapyard | Identified exit to Materials 1 | -11/Scrapyard | Discovered exit to Materials (range 0) 118 | -11/Scrapyard | Entered Materials 156 | -10/Materials | Identified exit to Mines 156 | -10/Materials | Discovered exit to Mines (range 7) 218 | -10/Materials | Identified exit to Materials 218 | -10/Materials | Discovered exit to Materials (range 16) 302 | -10/Materials | Discovered exit to Materials (range 17) 397 | -10/Materials | Discovered exit to Materials (range 16) 544 | -10/Materials | Identified exit to Subcaves 544 | -10/Materials | Discovered exit to Subcaves (range 16) 584 | -10/Materials | Build established: Hacker-Skirmisher 727 | -10/Materials | Entered Subcaves 728 | -10/Subcaves | Approached by a straggling Scientist 729 | -10/Subcaves | Reached level 2 957 | -10/Subcaves | A Subdweller sparked back to life 1020 | -10/Subcaves | Build established: Hacker-Mutant 1035 | -10/Subcaves | A swath of the cavern ceiling suddenly collapsed 1093 | -10/Subcaves | Scientist uncovered a shortcut to Scraptown 1110 | -10/Subcaves | Entered Scraptown 1112 | -7/Scraptown | Reached level 3 1112 | -7/Scraptown | Reached level 4 1130 | -7/Scraptown | Upgraded with Propulsion slot (x1) 1130 | -7/Scraptown | Upgraded with Utility slot (x1) 1130 | -7/Scraptown | Upgraded with Weapon slot (x1) 1363 | -7/Scraptown | Visited UFD Registry 1363 | -7/Scraptown | Registered with UFD as "Meganade" 1363 | -7/Scraptown | Reached level 5 1428 | -7/Scraptown | Visited Curators Association 1465 | -7/Scraptown | Visited Analyses Database 1479 | -7/Scraptown | Visited Science Testing Area 1514 | -7/Scraptown | Visited A0-MCA Data Center 1521 | -7/Scraptown | Given an A- rating by A0-MCA 1526 | -7/Scraptown | Found A0-MCA's Component Scanner 1656 | -7/Scraptown | Met Optimus 1656 | -7/Scraptown | Accepted into 0bPrime 1678 | -7/Scraptown | Upgraded with Propulsion slot (x1) 1694 | -7/Scraptown | Identified exit to Factory 1694 | -7/Scraptown | Discovered exit to Factory (range 3) 1695 | -7/Scraptown | Entered Factory 1697 | -5/Factory | Reached level 6 1697 | -5/Factory | Reached level 7 1697 | -5/Factory | Reached level 8 1697 | -5/Factory | Reached level 9 1697 | -5/Factory | Reached level 10 1697 | -5/Factory | Reached level 11 1697 | -5/Factory | Reached level 12 1697 | -5/Factory | Reached level 13 1697 | -5/Factory | Reached level 14 1697 | -5/Factory | Reached level 15 1697 | -5/Factory | Reached level 16 1697 | -5/Factory | Reached level 17 1697 | -5/Factory | Reached level 18 1697 | -5/Factory | Reached level 19 1697 | -5/Factory | Reached level 20 1697 | -5/Factory | Reached level 21 1697 | -5/Factory | Reached level 22 1697 | -5/Factory | Reached level 23 1716 | -5/Factory | Upgraded with Power slot (x1) 1716 | -5/Factory | Upgraded with Utility slot (x3) 1716 | -5/Factory | Upgraded with Weapon slot (x1) 1739 | -5/Factory | Identified exit to Factory 1821 | -5/Factory | Upgraded with Utility slot (x3) 2071 | -5/Factory | Fabricated Imp. Antigrav System? 2080 | -5/Factory | Reached level 24 2116 | -5/Factory | Build established: Hacker-Ninja 2347 | -5/Factory | Upgraded with Utility slot (x2) 2434 | -5/Factory | Entered another Factory area 2558 | -4/Factory | Identified exit to Research 2578 | -4/Factory | Spotted B-86 Titan 2579 | -4/Factory | Entered Research 2581 | -3/Research | Reached level 25 2581 | -3/Research | Reached level 26 2847 | -3/Research | Build established: Wizard-Ninja 2930 | -3/Research | Identified exit to Armory 2930 | -3/Research | Identified exit to Testing 3021 | -3/Research | Destroyed 8 combat bots 3032 | -3/Research | Reached level 27 3143 | -3/Research | Upgraded with Weapon slot (x1) 3329 | -3/Research | Identified exit to Research 3329 | -3/Research | Discovered exit to Research (range 8) 3354 | -3/Research | Fabricated Lrn. Terrain Scanner (x2) 3481 | -3/Research | Build established: Hacker-Ninja 3484 | -3/Research | Reached level 28 3515 | -3/Research | Discovered exit to Research (range 22) 3518 | -3/Research | Destroyed 7 combat bots 3545 | -3/Research | Cargo convoy interrupted 3558 | -3/Research | Found Exp. Shield Generator 3579 | -3/Research | First assault squad dispatched 3579 | -3/Research | Found Exp. Focal Shield 3608 | -3/Research | Entered Testing 3784 | -3/Testing | Found Exp. Hacking Suite 3790 | -3/Testing | Found Exp. System Shield 4084 | -3/Testing | Spotted Alpha 7 4086 | -3/Testing | Self-destructed Last Messages --------------- 04048_ Adv. Cooling System melted. 04048_ Gatling Laser melted. 04048_ Adv. Coolant Injector melted. 04048_ X-77 Beamer destroyed. 04048_ Terminal disabled. 04051_ Acquired 35 matter. 04085_ Component scanned: Prc. Phase Gun. 04085_ Component scanned: Imp. Quantum Reactor [Alpha 7]. 04085_ Component scanned: Hds. Centrium Leg [Alpha 7]. 04085_ Component scanned: Exp. Cooling System [Alpha 7]. 04085_ Component scanned: Exp. Target Analyzer [Alpha 7]. 04085_ Component scanned: Multirail [Alpha 7]. 04085_ Component scanned: Hvy. Quantum Rifle [Alpha 7]. 04085_ Penetrated by Slug. 04085_ Slug penetrates Wall. Map ----- +----------------------------------------------------+ | ?????????????????????#???????##?##?#?????####????# | | ? ????#?????????????????#?##?#?##??##?##?#?#??### | | "" #?????#??#????#?????#?#??###????#?#?#?#?#?#?#?? | | "??#?##??#??????##??????#?###???#?####???#?##?#### | | "" ###?????#??###??#??##??????#?##???##########?#? | | ??#??#??####???#?#????##?????##?#?##?###??##??# | | ?? #??#?###?##??##??????#?##?#???##??##??##??#?#?? | | #????##????#????#??##??##?####?#?####???##?#???#?# | | ?#######???##?#####?#?##??##??#?####??##?#?#?### | | ##??###?#?#?#?#????##?##???#########?##?######?? | | " ?# ? ? ??#?##?#?#####?##??####????###?#?######? | | " ## ?"?? ##########??###?##??#######?########?### | | " #? ?"" ####??##?###?##?####?###?#?#?######?#### | | ##?""" ####??#####?#?###############?######?### | | #### """ #########???######### ##?#?####### | | # """? ########?####?####### < ############ | | +? ##################### ############ | | # # ############?######## #####?####?# | | # # ###########?####?#### ############### | | # #""" ##########?###?###### # ##### | | # #"T #?################### # ##### | | # #""" ############## + ##### | | " #? ########## T## u# ##### | | " ###############[ + # ##### | | ########?######[ + # """"""" "#### | | ###############[ ##k@ ### # """"""" # = | | ################ ## ### # """"""" # | | ################ ## ### ########### " | | ################ ## ### ## | | # ################ ## ### ######## ##* | | # ###########?#### ## ### ######## ### | | ############### ## ### ### ! # ### | | " ############### ## ####+##### # ### | | ############### ## # # = # ### | | =#################### # # # ### | | # ##################### + # # ## | | # # ### # # = # # "# " | | # # """### # # # + %T ! | | # + """### # # # # ##% | | # # """### """ # k # # # ##[[* | | # # F"### " " "" # # ! ######+####%# | | # # """### """ " # # ##### #=# | | # # "" ### "" # ############## # # | | # #] ### " / ############## + # | | # # ### """ # ############## !! # # | | # # """ !### "" # ############## !! # # | | # # """ ### """ # ### ######## # # | | # """ ### """ # ### ############## # | | # !### # ### ############## # | | # ########### # # | +----------------------------------------------------+ Best States ------------- Heat Dissipation 117 Energy Generation 61 Energy Capacity 820 Matter Stores 300 Matter Capacity 300 Sight Range 19 Terrain Scan Range 24 Terrain Scan Density 810 Jamming Range 16 Armor Coverage 800 Resistance: KI 65 Resistance: TH 60 Resistance: EX 35 Resistance: EM 50 Resistance: I 35 Resistance: S 35 Resistance: P 35 Utility Shielding 33 Weapon Cycling 25 Evasion (%) 67 Target Analysis 12 Particle Charging 20 Offensive Hacking 56 Defensive Hacking 22 Item Schematics ----------------- Imp. Antigrav System | -5/Factory | Hacked Plasma Rifle | -5/Factory | Scanalyzed Cld. Plasma Rifle | -5/Factory | Hacked Hpw. Tractor Beam | -5/Factory | Scanalyzed Hvy. Laser | -5/Factory | Scanalyzed Enh. Coil Gun | -5/Factory | Scanalyzed Linear Gravjet | -5/Factory | Scanalyzed Lrn. Terrain Scanner | -3/Research | Hacked Biometal Heavy Treads | -3/Testing | Hacked Enh. Nova Cannon | -3/Testing | Hacked Cmb. Linear Gravjet | -3/Testing | Hacked Enh. Hardcell Cannon | -3/Testing | Hacked Exp. Thermal Defense Suite | -3/Testing | Archive Adv. Myomer Leg | -3/Testing | Archive Hds. Centrium Wheel | -3/Testing | Archive Prc. Energy Filter | -3/Testing | Archive Robot Schematics ------------------ None Fabricated ------------ Imp. Antigrav System | x2 | -5/Factory Lrn. Terrain Scanner | x2 | -3/Research Repaired ---------- Nothing Alien Tech Used ----------------- None Achievements -------------- None Challenges ------------ None RPGLIKE | -11 -10 -10 -7 -5 -4 -3 -3 --------- Run | Yrd Mat Sub Scr Fac Fac Res Tes Levels Raised 27 | . . 1 3 19 . 4 . XP Earned 47368 | 6000 750 1000 5700 27150 901 5074 793 XP Spent 46480 | 5950 . . 5430 29045 . 4555 1500 Upgrades 75 | 18 . . 7 33 . 11 6 Power Slot 1 | . . . . 1 . . . Propulsion Slot 3 | 1 . . 2 . . . . Utility Slot 11 | 2 . . 1 8 . . . Weapon Slot 4 | 1 . . 1 1 . 1 . Core Integrity 14 | 2 . . . 6 . 6 . Heat Dissipation 10 | 2 . . . 5 . . 3 Energy Generation 4 | . . . . 2 . 2 . Energy Storage 4 | . . . . 2 . 2 . Mass Support 4 | . . . . 4 . . . Inventory Capacity 5 | 4 . . 1 . . . . Sight Range 2 | 1 . . . 1 . . . Terrain Scan Density 8 | 3 . . 2 . . . 3 Ranged Accuracy 1 | 1 . . . . . . . Hack Attack % 4 | 1 . . . 3 . . . Protomatter Created 1497 | . 169 . . 231 21 1015 61 Integrity Restored 1947 | . 123 . . 445 63 1316 . Core 1687 | . 85 . . 348 63 1191 . Parts 260 | . 38 . . 97 . 125 . Protomatter Decayed 924 | . 126 60 . 68 . 509 161 Game ------ Seed MiniPlexusTearclaws Manual? 0 Play Time 00:44:20 Cumulative 1051.7 hours Start 2025.07.24 @ 20:19:09 End 2025.07.24 @ 21:10:44 Sessions 1 Manual Loads 0 Difficulty Explorer Special Mode Winter2019/RPGLIKE Game No. 338 Rogue 104 Adventurer 111 Explorer 123 Win Type - Total 48 Types 22/8/1/7/3/1/1/1/1/3 Lore% 97 Gallery% 99 Achievement% 97 Wizard Run 0 Options --------- Layout 2 ASCII 0 Keyboard 0 Movement Mouse Keybinds 0 Fullscreen 2 Font 24/Smallcaps Map View 50x44 Zoom Use 0% Tactical HUD 1 Map Filters NONE Filters NONE Steam 1 RUN: 48d3df91-3af4-4ba1-9e7d-c791ceea7b30